bitfinex/quotes_ETHUSD_20241003
["timestamp","ask_amount","ask_price","bid_price","bid_amount"]
[1727962528226,4.23935,2358.9,2358.4,4.24009]
[1727962528933,4.23935,2358.9,2358.5,4.23989]
[1727962529261,4.23935,2358.9,2358.4,4.24009]
[1727962529262,8.47878,2358.9,2358.4,4.24009]
[1727962529430,4.2399,2358.6,2358.1,4.24062]
[1727962529629,0.8146,2358.7,2358.4,4.24005]
[1727962529875,0.8146,2358.7,2358.1,4.24061]
[1727962530055,4.23997,2358.6,2358.2,4.24049]
[1727962530349,4.23997,2358.6,2358.2,4.24044]
[1727962530350,4.23991,2358.6,2358.2,4.24044]
[1727962530549,4.23991,2358.6,2358.1,4.24061]
[1727962530764,4.24,2358.5,2358.1,4.24061]
[1727962530986,0.8146,2358.7,2357.9,5.472417]
[1727962531280,4.24036,2358.3,2357.6,0.792]
[1727962531499,0.8146,2358.7,2357.3,0.792]
[1727962531500,0.8146,2358.2,2357.3,0.792]
[1727962531659,0.8146,2357.7,2357.1,4.24243]
[1727962531867,4.2419,2357.5,2357.4,0.10698127]
[1727962532166,4.2419,2357.5,2356.6,4.24328]
[1727962532167,4.24225,2357.3,2356.6,4.24328]
[1727962532393,5.05649,2357.5,2357.0,4.24268]
[1727962532546,5.05649,2357.5,2357.0,0.848551]
[1727962532747,5.05649,2357.5,2356.9,4.24276]
[1727962532748,4.24206,2357.4,2356.9,4.24276]
[1727962532979,5.05649,2357.5,2357.0,0.09993445]
[1727962533352,4.24206,2357.4,2357.0,0.09993445]
[1727962533686,5.05649,2357.5,2357.0,0.09993445]
[1727962534000,5.05649,2357.5,2357.0,0.58169751]
[1727962534001,4.24197,2357.4,2357.0,0.58169751]
[1727962534291,5.05649,2357.5,2357.0,0.09993445]
[1727962534292,4.24224,2357.3,2357.0,0.09993445]
[1727962534447,5.0565,2357.5,2357.0,0.09993445]
[1727962534650,4.24205,2357.4,2356.8,4.24301]
[1727962534970,4.24205,2357.4,2356.8,8.48596]
[1727962535169,4.24205,2357.4,2356.9,0.94892211]
[1727962535480,4.24205,2357.4,2356.9,5.19177211]
[1727962535682,4.24215,2357.3,2356.9,0.10032611]
[1727962535982,4.24215,2357.3,2356.6,4.24327]
[1727962536184,5.05643,2357.5,2357.0,4.34290611]
[1727962536400,0.8146,2357.5,2356.6,3.0]
[1727962536553,24.384231,2358.4,2357.2,4.24214]
[1727962536554,5.01197,2357.8,2357.2,4.24214]
[1727962536895,4.24075,2358.1,2357.2,4.24214]
[1727962536896,0.7706,2358.1,2357.6,4.24153]
[1727962537198,4.24102,2358.0,2357.5,4.24168]
[1727962537351,4.24107,2357.9,2357.7,0.10032611]
[1727962537553,4.24107,2357.9,2357.2,4.24218]
[1727962537554,0.7706,2358.1,2357.2,4.24218]
[1727962537749,4.24149,2357.7,2357.3,0.10032611]
[1727962537966,4.24149,2357.7,2357.3,0.85847061]
[1727962538186,4.24114,2357.9,2357.4,0.10032611]
[1727962538484,4.24114,2357.9,2357.4,4.34220611]
[1727962538642,0.7706,2358.1,2357.7,4.24128]
[1727962538851,4.24095,2358.0,2357.5,4.24175]
[1727962539147,0.7706,2358.1,2357.6,0.10032611]
[1727962539347,4.24108,2357.9,2357.5,4.24166]
[1727962539547,0.7706,2358.1,2357.7,4.24134]
[1727962539773,5.01132,2358.1,2357.7,4.24134]
[1727962540046,0.7706,2358.1,2357.8,0.10032611]
[1727962540242,7.35,2358.5,2357.8,5.19984772]
[1727962540450,4.23949,2358.8,2358.3,4.24033]
[1727962540649,0.7698,2359.0,2358.6,4.2397]
[1727962540895,0.7698,2359.0,2358.2,5.04618]
[1727962540896,5.00899,2359.0,2358.5,4.2399]
[1727962541052,5.00899,2359.0,2358.7,0.10032611]
[1727962541053,9.24824,2359.0,2358.7,0.10032611]
[1727962541247,4.23932,2358.9,2358.5,4.2399]
[1727962541486,0.7698,2359.0,2358.8,0.10032611]
[1727962541790,0.7698,2359.0,2358.5,5.087913]
[1727962541791,4.23917,2359.0,2358.9,0.10032611]
[1727962542150,4.23917,2359.0,2358.5,5.087843]
[1727962542151,8.47838,2359.0,2358.5,5.087963]
[1727962542385,4.23937,2358.9,2358.6,0.09922896]
[1727962542591,4.23891,2359.1,2358.6,0.09922896]
[1727962542773,0.7839,2359.3,2358.6,0.09922896]
[1727962543104,0.7839,2359.3,2357.9,0.8017]
[1727962543105,4.24025,2358.4,2357.9,0.8017]
[1727962543390,4.24025,2358.4,2357.4,9.58652276]
[1727962543391,4.24118,2357.9,2357.6,0.8017]
[1727962543605,4.24118,2357.9,2357.4,4.24187]
[1727962543889,4.24118,2357.9,2357.5,0.928556]
[1727962543890,4.24125,2357.8,2357.5,0.928556]
[1727962544189,5.04243,2358.1,2357.5,4.24176]
[1727962544395,5.04243,2358.1,2357.1,8.48478]
[1727962544396,4.24161,2357.6,2357.1,8.48478]
[1727962544554,4.24124,2357.8,2357.0,0.8017]
[1727962544752,4.24124,2357.8,2357.4,4.24186]
[1727962545081,0.8016,2358.1,2357.0,0.8017]
[1727962545257,0.8016,2358.1,2356.3,1.32443763]
[1727962545258,4.24259,2357.1,2356.5,4.24345]
[1727962545459,0.8016,2357.2,2356.1,5.04597]
[1727962545682,4.24291,2356.9,2356.4,4.24374]
[1727962546016,4.24291,2356.9,2355.6,0.88295842]
[1727962546017,4.24332,2356.7,2356.0,4.24438]
[1727962546300,0.848553,2356.9,2355.8,4.24473]
[1727962546301,4.2437,2356.5,2355.8,4.24473]
[1727962546455,4.24378,2356.4,2355.8,4.24473]
[1727962546649,5.03594,2356.5,2355.9,4.2446]
[1727962546855,0.7923,2356.5,2355.6,4.2451]
[1727962547294,4.24513,2355.7,2355.1,4.24594]
[1727962547494,4.24513,2355.7,2354.9,4.2464]
[1727962547495,4.24539,2355.5,2354.9,4.2464]
[1727962547715,4.24539,2355.5,2355.0,0.42464]
[1727962547853,0.8139,2355.8,2355.2,4.24581]
[1727962548054,4.24503,2355.7,2355.1,4.24597]
[1727962548751,4.24503,2355.7,2355.1,4.3247157]
[1727962548899,4.24476,2355.9,2355.3,4.24572]
[1727962549106,4.24438,2356.1,2355.4,0.424572]
[1727962549310,4.24438,2356.1,2355.5,4.24537]
[1727962549311,8.48881,2356.1,2355.5,4.24537]
[1727962549462,0.7828,2356.2,2355.3,0.7821]
[1727962549800,4.76282301,2357.3,2356.1,4.24429]
[1727962549801,5.02628,2356.6,2356.1,4.24429]
[1727962550018,5.02628,2356.6,2356.0,4.24436]
[1727962550019,4.24359,2356.5,2356.0,4.24436]
[1727962550170,4.24359,2356.5,2356.2,0.07589343]
[1727962550171,4.24358,2356.5,2356.2,0.07589343]
[1727962550362,5.02628,2356.6,2356.2,0.07589343]
[1727962550559,8.48633,2356.8,2356.2,4.24398]
[1727962550785,4.24218,2357.3,2356.3,0.07589343]
[1727962550786,0.7828,2357.3,2356.3,0.07589343]
[1727962551001,8.48496,2357.2,2356.6,4.24339]
[1727962551262,0.7828,2357.3,2356.5,4.24356]
[1727962551263,0.7828,2357.3,2356.7,0.848695]
[1727962551492,5.02505,2357.3,2356.7,4.32012297]
[1727962551703,4.24235,2357.2,2356.7,4.32012297]
[1727962551905,5.02505,2357.3,2356.8,4.24302]
[1727962552202,5.02505,2357.3,2356.7,4.32004297]
[1727962552203,0.7828,2357.3,2356.9,4.24274]
[1727962552399,0.7828,2357.3,2356.9,4.31966813]
[1727962552615,4.24131,2357.8,2356.9,5.17600594]
[1727962552918,5.05632,2357.7,2357.1,4.24247]
[1727962553097,5.05632,2357.7,2357.0,0.07872008]
[1727962553098,4.24118,2357.9,2357.3,4.24202]
[1727962553283,4.24118,2357.9,2357.4,4.24195]
[1727962553696,4.2409,2358.0,2357.5,4.31832947]
[1727962553894,4.24116,2357.9,2357.5,0.93262442]
[1727962554210,4.24147,2357.7,2357.5,0.07658947]
[1727962554372,0.7712,2358.1,2357.3,0.03937195]
[1727962554575,4.24141,2357.8,2357.4,0.07641538]
[1727962554918,4.24144,2357.7,2357.4,0.07641538]
[1727962555413,5.01192,2358.1,2356.9,5.01003]
[1727962555414,4.24107,2357.9,2357.2,4.24232]
[1727962555614,4.24107,2357.9,2357.4,4.24187]
[1727962555911,4.24088,2358.0,2357.5,4.24176]
[1727962556111,4.24092,2358.0,2357.5,0.07642505]
[1727962556314,4.2416,2357.6,2357.5,0.07642505]
[1727962556673,4.2416,2357.6,2357.1,7.2424]
[1727962556874,4.2416,2357.6,2357.1,8.467626]
[1727962557108,4.2416,2357.6,2357.2,0.07639121]
[1727962557483,4.2418,2357.5,2357.2,0.07639121]
[1727962557685,4.24144,2357.7,2357.2,0.07639121]
[1727962557919,4.24181,2357.5,2357.2,0.07639121]
[1727962558076,4.2416,2357.6,2357.2,0.07639121]
[1727962558280,0.7712,2358.1,2357.2,0.07639121]
[1727962558499,0.7712,2358.1,2356.9,4.24272]
[1727962558500,5.01306,2357.4,2356.9,4.24272]
[1727962558681,5.01263,2357.7,2357.3,0.07384483]
[1727962558903,5.01263,2357.7,2357.1,4.24232]
[1727962558904,4.24138,2357.8,2357.1,4.24232]
[1727962559118,0.7711,2358.0,2357.3,4.242]
[1727962559119,9.25313,2358.0,2357.3,4.242]
[1727962559422,4.24107,2357.9,2357.4,4.2418]
[1727962559630,4.24107,2357.9,2357.4,4.3152482]
[1727962559918,4.24107,2357.9,2357.4,9.53826622]
[1727962560227,5.01211,2358.0,2357.4,5.29639622]
[1727962560228,0.7711,2358.0,2357.4,5.29639622]
[1727962560410,0.7711,2358.0,2357.4,5.29641622]
[1727962560411,4.24097,2358.0,2357.4,5.29641622]
[1727962560716,4.24097,2358.0,2357.5,4.24165]
[1727962560882,4.24108,2357.9,2357.4,5.29653622]
[1727962561084,4.24087,2358.1,2357.6,4.24153]
[1727962561519,4.24087,2358.1,2357.2,1.254032]
[1727962561721,4.24124,2357.8,2357.7,0.0734482]
[1727962562023,4.24107,2357.9,2357.5,0.08482775]
[1727962562182,4.24088,2358.0,2357.7,0.0734482]
[1727962562492,4.24124,2357.8,2357.7,0.0734482]
[1727962562697,4.24161,2357.6,2357.1,3.0]
[1727962562884,4.24182,2357.5,2357.1,3.0]
[1727962563381,4.24182,2357.5,2356.9,0.8223]
[1727962563382,0.8303,2357.7,2356.9,0.8223]
[1727962563582,0.8303,2357.7,2356.3,10.41082276]
[1727962563583,4.24312,2356.8,2356.3,10.41082276]
[1727962563821,4.24331,2356.7,2356.3,0.8223]
[1727962564019,4.24348,2356.6,2356.3,0.8223]
[1727962564223,4.24348,2356.6,2356.0,5.093242]
[1727962564470,4.24348,2356.6,2356.0,0.848902]
[1727962564683,4.24317,2356.8,2356.2,4.24411]
[1727962564956,4.24317,2356.8,2356.2,4.24403]
[1727962565468,4.24317,2356.8,2356.3,4.2438]
[1727962565667,4.24287,2356.9,2356.4,4.24367]
[1727962566026,5.07308,2357.0,2356.0,4.2443]
[1727962566027,4.24351,2356.6,2356.0,4.2443]
[1727962566238,4.24414,2356.2,2355.9,0.8158]
[1727962566453,4.24439,2356.1,2355.7,4.24501]
[1727962566759,5.03501,2356.5,2355.8,4.24466]
[1727962566922,4.24396,2356.3,2355.8,4.28269725]
[1727962567123,5.03501,2356.5,2355.8,4.24481]
[1727962567362,4.24333,2356.7,2356.1,4.24421]
[1727962567363,4.24346,2356.6,2356.1,4.24421]
[1727962567573,4.24367,2356.5,2355.9,0.5093817]
[1727962567737,4.24412,2356.2,2355.8,4.24472]
[1727962567940,4.24412,2356.2,2356.0,0.05859642]
[1727962568244,4.24412,2356.2,2355.1,4.24606]
[1727962568245,4.24484,2355.8,2355.1,4.24606]
[1727962568571,5.00902,2356.2,2355.8,4.24483]
[1727962568572,4.24413,2356.2,2355.8,4.24483]
[1727962568881,4.2444,2356.1,2355.6,4.24517]
[1727962569030,4.24402,2356.3,2355.9,4.24465]
[1727962569226,4.24402,2356.3,2355.5,0.7575]
[1727962569227,4.24393,2356.4,2355.7,4.24484]
[1727962569452,4.24413,2356.2,2355.8,4.24476]
[1727962569659,4.24458,2356.0,2355.5,5.00274]
[1727962569911,4.24458,2356.0,2355.2,4.24582]
[1727962569912,3.0,2356.4,2355.7,4.24494]
[1727962570028,4.24423,2356.2,2355.7,4.24493]
[1727962570225,4.24423,2356.2,2355.7,9.338866]
[1727962570452,4.24423,2356.2,2355.7,5.093936]
[1727962570654,4.24423,2356.2,2355.3,4.24573]
[1727962570655,4.24486,2355.8,2355.4,4.24555]
[1727962570856,4.24486,2355.8,2354.9,7.24636]
[1727962570857,4.2454,2355.5,2355.0,4.24617]
[1727962571038,4.2454,2355.5,2354.8,4.24651]
[1727962571039,0.797,2355.5,2354.8,4.24663]
[1727962571240,0.797,2355.5,2354.8,5.171825]
[1727962571241,4.2459,2355.3,2354.8,5.171825]
[1727962571671,5.04245,2355.5,2355.0,4.24625]
[1727962571976,0.8163,2356.2,2354.9,0.7832]
[1727962572128,5.06052,2356.2,2355.5,4.24536]
[1727962572334,4.2453,2355.6,2354.9,5.02953]
[1727962572529,4.2453,2355.6,2355.1,4.2461]
[1727962572832,4.2453,2355.6,2355.1,4.24609]
[1727962573235,4.2453,2355.6,2355.1,8.4921]
[1727962573454,4.24496,2355.8,2355.0,0.502953]
[1727962573455,4.24496,2355.8,2355.2,4.24589]
[1727962573665,4.2446,2356.0,2355.1,4.2461]
[1727962573872,5.06053,2356.2,2355.6,4.24509]
[1727962574045,5.06053,2356.2,2355.7,4.2449]
[1727962574046,0.8163,2356.2,2355.7,4.2449]
[1727962574377,5.06052,2356.2,2355.7,4.2449]
[1727962574750,9.30476,2356.2,2355.7,4.2449]
[1727962574933,4.2443,2356.1,2355.7,4.2449]
[1727962575136,4.24478,2355.9,2355.3,4.24566]
[1727962575350,0.8163,2356.2,2355.4,4.670026]
[1727962575351,4.24462,2356.0,2355.4,4.670026]
[1727962575544,5.06053,2356.2,2355.6,4.24504]
[1727962576146,4.2445,2356.0,2355.6,4.24504]
[1727962576342,4.24432,2356.1,2355.7,4.24502]
[1727962576547,4.24432,2356.1,2355.6,4.24504]
[1727962576548,5.06053,2356.2,2355.6,4.24504]
[1727962576773,4.24432,2356.1,2355.6,8.49015]
[1727962576974,4.24403,2356.3,2355.8,4.24469]
[1727962577146,4.24383,2356.4,2355.7,4.24491]
[1727962577147,4.24383,2356.4,2355.7,8.48981]
[1727962577344,7.35,2356.5,2355.6,0.8915016]
[1727962577547,8.48848,2356.2,2355.6,4.24511]
[1727962577745,4.24432,2356.1,2355.6,4.24511]
[1727962578075,4.24484,2355.8,2355.4,4.669986]
[1727962578420,4.24516,2355.7,2355.3,4.24571]
[1727962578536,4.24485,2355.8,2355.4,4.24555]
[1727962578739,4.2448,2355.9,2355.4,4.24555]
[1727962578940,4.24478,2355.9,2355.4,4.24555]
[1727962579182,4.2452,2355.6,2355.2,5.0562]
[1727962579489,4.24502,2355.7,2355.3,4.24574]
[1727962579640,0.8255,2356.0,2355.5,4.24524]
[1727962580040,4.24447,2356.1,2355.6,4.24511]
[1727962580271,4.24448,2356.0,2355.6,4.24511]
[1727962580480,8.4889,2356.1,2355.6,4.24511]
[1727962580645,8.4889,2356.1,2355.4,4.2454]
[1727962580646,4.24436,2356.1,2355.4,4.2454]
[1727962580978,4.24464,2356.0,2355.5,4.24524]
[1727962581179,4.24494,2355.8,2355.2,5.05607]
[1727962581340,4.2454,2355.5,2355.2,0.8103]
[1727962581542,4.24556,2355.4,2354.8,5.00242]
[1727962581807,0.501636,2355.4,2354.5,0.7559]
[1727962582077,0.7708,2355.6,2354.5,0.7559]
[1727962582078,4.24604,2355.2,2354.5,0.7559]
[1727962582287,4.24604,2355.2,2354.8,4.24654]
[1727962582464,4.24604,2355.2,2354.7,4.24665]
[1727962582673,4.24604,2355.2,2354.9,0.05413025]
[1727962582995,4.24618,2355.1,2354.6,4.24698]
[1727962583149,4.24604,2355.2,2355.0,0.05413025]
[1727962583348,4.24604,2355.2,2354.8,4.24661]
[1727962583590,4.24577,2355.3,2355.1,0.05413025]
[1727962583806,0.7708,2355.6,2354.5,0.7559]
[1727962583950,5.01602,2355.6,2355.2,4.24583]
[1727962584279,16.61436,2356.1,2355.2,4.24583]
[1727962584280,11.59491,2355.8,2355.2,4.24583]
[1727962584452,4.24504,2355.7,2355.3,4.29986025]
[1727962584651,4.24528,2355.6,2355.3,0.05413025]
[1727962584980,4.24522,2355.6,2355.2,4.24575]
[1727962585147,5.02792,2355.9,2355.4,0.05413025]
[1727962585148,4.24466,2355.9,2355.4,0.05413025]
[1727962585355,4.24516,2355.7,2355.3,0.504285]
[1727962585654,4.2452,2355.6,2355.1,4.24609]
[1727962585864,4.24506,2355.7,2355.4,0.05413025]
[1727962586209,4.24506,2355.7,2355.3,4.24564]
[1727962586491,4.24506,2355.7,2355.2,4.24581]
[1727962586650,5.02788,2355.9,2355.1,4.24605]
[1727962586853,4.2445,2356.0,2355.5,4.24522]
[1727962587190,4.24441,2356.1,2355.7,4.24499]
[1727962587396,4.24441,2356.1,2355.6,4.24503]
[1727962587598,4.99491,2356.2,2355.8,0.05434822]
[1727962587903,4.99491,2356.2,2355.3,4.24571]
[1727962587904,4.24565,2355.4,2355.0,4.24615]
[1727962588105,0.7948,2355.6,2354.9,0.8105]
[1727962588321,4.24503,2355.7,2355.2,4.24578]
[1727962588598,4.24503,2355.7,2355.3,4.24572]
[1727962588757,4.24503,2355.7,2355.2,4.24578]
[1727962588951,4.24503,2355.7,2355.3,4.24572]
[1727962589172,4.24503,2355.7,2355.2,4.24578]
[1727962589459,9.28434,2355.9,2355.2,0.424578]
[1727962589759,9.28434,2355.9,2354.9,0.8105]
[1727962589760,5.03956,2355.9,2355.4,4.24548]
[1727962589960,4.24511,2355.7,2355.3,4.2457]
[1727962590596,4.24538,2355.5,2355.1,4.24598]
[1727962590755,4.24511,2355.7,2355.2,4.2459]
[1727962590951,4.24485,2355.8,2355.4,4.24546]
[1727962591194,4.24485,2355.8,2355.3,8.49132]
[1727962591403,5.03962,2355.9,2354.9,3.8105]
[1727962591404,0.7948,2355.9,2354.9,3.8105]
[1727962591555,4.24581,2355.3,2354.8,4.24652]
[1727962591756,4.24581,2355.3,2354.6,0.7954]
[1727962591757,0.7785,2355.3,2354.6,0.7954]
[1727962591965,4.24637,2355.0,2354.6,5.0423]
[1727962592166,5.02441,2355.3,2354.6,1.724356]
[1727962592368,4.24583,2355.3,2354.8,4.24663]
[1727962592671,4.24628,2355.0,2354.6,5.04237]
[1727962593386,4.24618,2355.1,2354.6,0.7954]
[1727962593588,4.24692,2354.7,2354.2,5.04901]
[1727962593896,0.8064,2355.0,2354.0,4.248]
[1727962593897,4.24738,2354.4,2354.0,4.248]
[1727962594114,4.24784,2354.2,2353.7,4.24859]
[1727962594411,4.24784,2354.2,2353.6,4.24865]
[1727962594412,4.248,2354.1,2353.6,4.24865]
[1727962594730,4.24785,2354.2,2353.5,4.24898]
[1727962594928,4.24802,2354.1,2353.6,4.24876]
[1727962595327,4.24802,2354.1,2353.5,4.749538]
[1727962595328,4.24824,2354.0,2353.5,4.749528]
[1727962595647,4.24837,2353.9,2353.3,5.00581]
[1727962596042,4.24803,2354.1,2353.3,0.7566]
[1727962596343,4.24835,2353.9,2353.5,4.24897]
[1727962596530,4.24835,2353.9,2353.4,4.24907]
[1727962596729,4.24809,2354.0,2353.4,5.174576]
[1727962596900,4.24827,2353.9,2353.4,5.174576]
[1727962597095,4.24803,2354.1,2353.5,4.24885]
[1727962597296,0.7813,2354.3,2353.3,0.7566]
[1727962597530,4.24846,2353.8,2353.4,4.24916]
[1727962597744,4.24827,2353.9,2353.4,5.22334184]
[1727962598035,4.24827,2353.9,2353.4,9.47241184]
[1727962598394,4.24827,2353.9,2353.4,5.22325184]
[1727962598601,4.24845,2353.8,2353.4,5.22320184]
[1727962598973,4.24899,2353.5,2353.4,0.04866784]
[1727962599105,7.24899,2353.5,2353.4,0.04866784]
[1727962599445,7.24899,2353.5,2352.4,4.25089]
[1727962599446,4.25021,2352.9,2352.4,4.25089]
[1727962599614,4.24938,2353.3,2352.2,5.0287]
[1727962599615,4.25033,2352.8,2352.3,4.25114]
[1727962599799,4.25001,2353.0,2352.5,0.04390843]
[1727962600000,7.35,2353.3,2352.2,0.7775]
[1727962600235,7.35,2353.3,2353.1,4.24963]
[1727962600468,4.24918,2353.4,2352.9,4.24992]
[1727962600612,4.24918,2353.4,2352.9,8.924892]
[1727962600812,4.24891,2353.6,2353.2,0.04390843]
[1727962601013,8.49786,2353.6,2353.1,4.24955]
[1727962601226,4.24891,2353.6,2353.3,0.04442282]
[1727962601592,0.7768,2353.7,2353.4,0.04442282]
[1727962601754,5.02543,2353.7,2353.4,0.04442282]
[1727962601941,4.24883,2353.6,2353.1,4.24955]
[1727962602137,4.2486,2353.8,2353.5,0.04435486]
[1727962602357,5.01709,2354.0,2353.4,4.24909]
[1727962602588,4.24836,2353.9,2353.6,0.04435486]
[1727962602886,4.24881,2353.6,2353.5,0.04423836]
[1727962603083,5.01699,2354.0,2353.3,4.24932]
[1727962603084,4.24853,2353.8,2353.3,4.24932]
[1727962603240,5.01714,2354.0,2353.7,0.04423836]
[1727962603442,3.0,2354.3,2353.7,0.04423836]
[1727962603443,4.24756,2354.3,2353.7,0.04423836]
[1727962603649,4.24794,2354.1,2353.7,4.24852]
[1727962603999,4.24788,2354.2,2353.8,0.04423836]
[1727962604555,4.24787,2354.2,2353.8,0.04423836]
[1727962604774,4.24782,2354.2,2353.8,0.5494342]
[1727962604975,0.8241,2354.4,2353.8,0.04423836]
[1727962605305,4.24758,2354.3,2353.7,4.24851]
[1727962605444,4.24782,2354.2,2353.9,0.04402486]
[1727962605650,4.24782,2354.2,2353.6,0.7592]
[1727962605651,4.24807,2354.1,2353.6,4.24873]
[1727962605952,4.24844,2353.8,2353.7,0.04402486]
[1727962606165,4.2482,2354.0,2353.4,5.01018]
[1727962606367,4.2482,2354.0,2353.7,0.04402486]
[1727962606577,4.24838,2353.9,2353.7,0.04402486]
[1727962606788,4.2482,2354.0,2353.7,0.04402486]
[1727962606959,4.24784,2354.2,2353.7,4.24855]
[1727962607283,4.24768,2354.3,2353.8,0.04402486]
[1727962607442,4.24762,2354.3,2353.8,0.47327235]
[1727962607647,9.31904,2354.4,2353.8,0.04402486]
[1727962607878,4.24758,2354.3,2353.9,4.24825]
[1727962608079,4.24714,2354.6,2354.1,4.24781]
[1727962608285,8.139,2354.7,2354.0,0.04402486]
[1727962608453,4.24775,2354.2,2353.8,4.24843]
[1727962608654,4.24808,2354.1,2353.9,0.04402486]
[1727962608855,5.05348,2354.1,2353.1,4.2496]
[1727962609055,4.24835,2353.9,2353.4,4.24907]
[1727962609277,4.24839,2353.9,2353.5,0.04255736]
[1727962609499,4.24881,2353.6,2353.0,5.07397]
[1727962609674,4.24855,2353.8,2353.6,0.04260103]
[1727962609866,0.8054,2354.1,2353.3,4.24929]
[1727962610081,5.05338,2354.1,2353.7,4.24852]
[1727962610452,7.35,2354.3,2353.8,4.24843]
[1727962610659,4.24748,2354.4,2353.8,0.930565]
[1727962610854,3.8256,2354.5,2353.9,4.29076103]
[1727962611061,4.24764,2354.3,2353.9,0.04260103]
[1727962611369,4.24684,2354.7,2353.9,0.04260103]
[1727962611583,4.24684,2354.7,2354.2,4.24756]
[1727962611793,4.24684,2354.7,2354.3,4.24752]
[1727962611973,5.05873,2354.9,2354.4,4.24725]
[1727962612152,5.05873,2354.9,2354.3,0.04247005]
[1727962612153,4.24684,2354.7,2354.3,0.04247005]
[1727962612358,0.930583,2354.7,2354.1,0.7689]
[1727962612581,0.8122,2354.9,2354.4,0.04247005]
[1727962612582,4.24734,2354.5,2354.4,0.04247005]
[1727962612767,4.24734,2354.5,2354.0,4.24795]
[1727962612967,4.24745,2354.4,2353.9,4.24818]
[1727962613201,4.24745,2354.4,2353.8,0.8181]
[1727962613202,4.2478,2354.2,2353.8,0.8181]
[1727962613390,4.24793,2354.1,2353.8,0.8181]
[1727962613708,4.24818,2354.0,2353.5,4.24884]
[1727962614017,4.24852,2353.8,2352.9,0.8091]
[1727962614172,4.24852,2353.8,2353.1,4.24959]
[1727962614360,8.49711,2353.8,2353.3,4.24927]
[1727962614564,4.24863,2353.7,2353.3,4.24927]
[1727962614763,4.24863,2353.7,2353.3,4.24933]
[1727962614963,4.24852,2353.8,2353.3,4.24933]
[1727962615267,4.24852,2353.8,2353.4,4.24915]
[1727962615493,4.24827,2353.9,2353.5,4.24895]
[1727962615693,4.24824,2354.0,2353.5,4.24895]
[1727962615964,4.24824,2354.0,2353.4,4.24915]
[1727962615965,7.35,2354.1,2353.3,4.24933]
[1727962616168,0.70455505,2354.0,2353.3,4.24933]
[1727962616366,0.70455505,2354.0,2353.4,4.249]
[1727962616367,4.24834,2353.9,2353.4,4.249]
[1727962616686,4.24834,2353.9,2353.3,4.24921]
[1727962616687,4.2485,2353.8,2353.3,4.24921]
[1727962616862,4.24834,2353.9,2353.5,4.24896]
[1727962617066,8.49669,2353.9,2353.4,4.24902]
[1727962617275,8.49632,2354.0,2353.5,4.24898]
[1727962617480,4.24809,2354.0,2353.6,4.2488]
[1727962617987,7.35,2354.1,2353.8,4.2483]
[1727962618197,4.24816,2354.0,2353.5,0.8183]
[1727962618417,4.24816,2354.0,2353.5,4.24897]
[1727962618871,4.24812,2354.0,2353.6,4.24872]
[1727962619270,7.35,2354.1,2353.7,4.24861]
[1727962619623,7.35,2354.6,2354.2,4.24758]
[1727962619766,13.1514,2354.9,2354.0,0.7508]
[1727962619767,0.7814,2354.9,2354.0,0.7508]
[1727962619963,0.7814,2354.9,2354.2,4.24761]
[1727962619964,4.24686,2354.7,2354.2,4.24761]
[1727962620435,0.7814,2354.9,2354.4,4.24733]
[1727962620589,0.7814,2354.9,2354.3,4.24752]
[1727962620590,5.02801,2354.9,2354.3,4.24752]
[1727962620775,4.24683,2354.7,2354.3,4.24752]
[1727962620976,4.24745,2354.4,2354.0,4.99886]
[1727962621177,8.49492,2354.4,2353.8,5.07672]
[1727962621480,5.03066,2354.3,2353.8,4.24842]
[1727962621780,5.03066,2354.3,2353.5,5.06381]
[1727962621781,0.783,2354.3,2353.5,5.06381]
[1727962622010,4.24852,2353.8,2353.4,4.24903]
[1727962622481,5.01571,2353.7,2353.2,4.24941]
[1727962622828,4.249,2353.5,2352.9,5.03744]
[1727962623120,4.249,2353.5,2352.1,6.13230535]
[1727962623121,4.24979,2353.1,2352.6,5.03792]
[1727962623273,7.249,2353.5,2352.6,0.7874]
[1727962623477,7.249,2353.5,2352.5,4.25069]
[1727962623478,8.49996,2353.0,2352.5,4.25069]
[1727962623712,0.767,2353.1,2352.3,0.7874]
[1727962623713,4.25055,2352.7,2352.3,0.7874]
[1727962623972,0.767,2353.1,2352.5,4.25076]
[1727962624188,5.01676,2353.1,2352.5,4.25076]
[1727962624371,5.01672,2353.1,2352.5,4.25061]
[1727962624588,0.767,2353.1,2352.2,4.25123]
[1727962624797,5.00531,2353.5,2353.0,4.24986]
[1727962625014,4.24926,2353.4,2352.8,8.50028]
[1727962625192,0.7563,2353.5,2352.7,0.8302]
[1727962625193,4.24962,2353.2,2352.7,0.8302]
[1727962625396,4.674582,2353.2,2352.7,0.8302]
[1727962625597,4.674582,2353.2,2352.6,4.25059]
[1727962625794,4.674582,2353.2,2352.7,3.7504]
[1727962625996,4.24971,2353.1,2352.6,4.25059]
[1727962626330,4.2499,2353.0,2352.5,4.25065]
[1727962626617,4.2499,2353.0,2352.2,3.0]
[1727962626618,4.25044,2352.7,2352.2,3.0]
[1727962626832,4.25044,2352.7,2352.1,0.9096519]
[1727962626983,4.25044,2352.7,2352.2,4.2512]
[1727962627335,4.25082,2352.5,2352.1,0.9096519]
[1727962627480,4.2507,2352.6,2352.1,5.1610519]
[1727962627815,8.50141,2352.6,2352.1,5.1610519]
[1727962628032,4.2507,2352.6,2352.1,5.1611419]
[1727962628235,4.2507,2352.6,2352.1,0.9096519]
[1727962628449,4.25116,2352.3,2352.1,0.1155519]
[1727962628602,4.25133,2352.2,2352.1,0.1155519]